{"text_format":"3","workbook":"xlsx","n_sheets":3,"sheets":["Статьи","Отправки","Публикации"],"not_rendered":{"images":1,"defined_names":2},"read":"whole","date_system":"1900"}

{"sheet":"Статьи","index":0,"n_rows":10,"n_cols":7,"rows_kept":10}
[{"$nulls":6}," "]
[]
[]
[null,"Название","Состояние","Количество слов","Тип истории","Сводка"]
[null,"Вечерний звонок","Завершено",{"v":5710,"d":"5,710"},"Краткая история","Приключенческая повесть о тайном детективе."]
[null,"Синяя стена","Завершено",{"v":4525,"d":"4,525"},"Краткая история","Вдохновляющий рассказ о дизайне домов."]
[null,"Любовь после любви","Завершено",438,"Публикация в блоге","История любви о втором шансе."]
[null,"Наибольшая опасность","Выполняется",550,"Реклама","Рекламный материал дизайнера футболок."]
[null,"Историческая миссия","Завершено",520,"Публикация в блоге","Краткий рассказ о космическом полете."]
[null,"Старый квартал","Завершено",290,"Публикация в блоге","Спортивный репортаж о финальном матче."]

{"sheet":"Отправки","index":1,"n_rows":11,"n_cols":8,"rows_kept":11}
[{"$nulls":7}," "]
[]
[]
[null,"Дата \nОтправлено","Название истории","Название издания","Состояние","Дата \nОпубликовано","Платеж \nПолучено"]
[null,{"$f":"TODAY()-21","v":"2019-09-26"},"Вечерний звонок","Журнал Young at Heart","Отклонено"]
[null,{"$f":"TODAY()-9","v":"2019-10-08"},"Синяя стена","Журнал Young at Heart","Принято",{"$f":"TODAY()-4","v":"2019-10-13"},{"v":300,"d":"300.00 ₽"}]
[null,{"$f":"TODAY()-9","v":"2019-10-08"},"Синяя стена","Digital Grounds","Принято",{"$f":"TODAY()-2","v":"2019-10-15"},{"v":350,"d":"350.00 ₽"}]
[null,{"$f":"TODAY()-7","v":"2019-10-10"},"Любовь после любви","Get This!","Отправлено"]
[null,{"$f":"TODAY()-6","v":"2019-10-11"},"Историческая миссия","Digital Grounds","Принято",{"$f":"TODAY()-4","v":"2019-10-13"},{"v":150,"d":"150.00 ₽"}]
[null,{"$f":"TODAY()-6","v":"2019-10-11"},"Старый квартал","Get This!","Принято",{"$f":"TODAY()-3","v":"2019-10-14"},{"v":100,"d":"100.00 ₽"}]
[null,{"$f":"TODAY()-6","v":"2019-10-11"},"Старый квартал","Digital Grounds","Отправлено"]

{"sheet":"Публикации","index":2,"n_rows":7,"n_cols":8,"rows_kept":7}
[{"$nulls":7}," "]
[]
[]
[null,"Имя","Тип","Сроки","Итого \nОтправки","Итого\nПринято","Итого \nПрибыль"]
[null,"Digital Grounds","Другое","Через две недели после запроса",{"$f":"COUNTIF(Таблица_Отправки[Название издания],Таблица_Публикации[Имя])","v":3},{"$f":"COUNTIFS(Таблица_Отправки[Название издания],Таблица_Публикации[Имя],Таблица_Отправки[Состояние],\"Принято\")","v":2},{"$f":"SUMIF(Таблица_Отправки[Название издания],Таблица_Публикации[Имя],Таблица_Отправки[Платеж \nПолучено])","v":{"v":500,"d":"500.00 ₽"}}]
[null,"Журнал Young at Heart","SFWA","Каждое 3-е число месяца",{"$f":"COUNTIF(Таблица_Отправки[Название издания],Таблица_Публикации[Имя])","v":2},{"$f":"COUNTIFS(Таблица_Отправки[Название издания],Таблица_Публикации[Имя],Таблица_Отправки[Состояние],\"Принято\")","v":1},{"$f":"SUMIF(Таблица_Отправки[Название издания],Таблица_Публикации[Имя],Таблица_Отправки[Платеж \nПолучено])","v":{"v":300,"d":"300.00 ₽"}}]
[null,"Get This!","SFWA","Каждый понедельник",{"$f":"COUNTIF(Таблица_Отправки[Название издания],Таблица_Публикации[Имя])","v":2},{"$f":"COUNTIFS(Таблица_Отправки[Название издания],Таблица_Публикации[Имя],Таблица_Отправки[Состояние],\"Принято\")","v":1},{"$f":"SUMIF(Таблица_Отправки[Название издания],Таблица_Публикации[Имя],Таблица_Отправки[Платеж \nПолучено])","v":{"v":100,"d":"100.00 ₽"}}]